bitfinex-derivatives/quotes_BNBF0:USTF0_20250211
["timestamp","ask_amount","ask_price","bid_price","bid_amount"]
[1739304239957,1.33768257,629.23,628.04,0.27062551]
[1739304240157,1.33768257,629.22,628.04,0.27062551]
[1739304240356,1.33768257,629.21,628.04,0.27062551]
[1739304240554,1.33768257,629.2,628.04,0.27062551]
[1739304240749,1.33768257,629.19,628.04,0.27062551]
[1739304240951,1.33768257,629.18,628.04,0.27062551]
[1739304241152,1.33768257,629.17,628.04,0.27062551]
[1739304241352,1.33768257,629.16,628.04,0.27062551]
[1739304241551,1.33768257,629.15,628.04,0.27062551]
[1739304241856,1.33768257,629.14,628.04,0.27062551]
[1739304242051,1.33768257,629.13,628.05,0.31844598]
[1739304242255,1.33768257,629.12,628.06,0.27062551]
[1739304242455,1.33768257,629.11,628.07,0.31843584]
[1739304242652,0.31783869,629.25,628.07,0.31843584]
[1739304242653,1.33768257,629.1,628.08,0.27062551]
[1739304242957,1.33768257,629.09,628.08,0.27062551]
[1739304243158,1.33768257,629.08,628.08,0.27062551]
[1739304243457,1.33541051,629.07,628.08,0.27062551]
[1739304243658,1.33541051,629.06,628.08,0.27062551]
[1739304243959,1.33541051,629.05,628.08,0.27062551]
[1739304244257,1.33541051,629.04,628.08,0.27062551]
[1739304244454,1.33541051,629.03,628.08,0.27062551]
[1739304244656,1.33541051,629.02,628.08,0.27062551]
[1739304244857,0.31783869,629.25,628.08,0.27062551]
[1739304244858,1.33541051,629.01,628.08,0.27062551]
[1739304245056,1.33541051,629.0,628.08,0.27062551]
[1739304245257,1.33541051,628.99,628.08,0.27062551]
[1739304245457,1.33541051,628.98,628.08,0.27062551]
[1739304245752,1.33541051,628.97,628.08,0.27062551]
[1739304245958,1.33541051,628.96,628.08,0.27062551]
[1739304246159,1.33541051,628.95,628.08,0.27062551]
[1739304246358,1.33541051,628.94,628.08,0.27062551]
[1739304246558,1.33541051,628.93,628.08,0.27062551]
[1739304246760,1.33541051,628.92,628.08,0.27062551]
[1739304247061,1.33541051,628.91,628.09,0.27066295]
[1739304247361,0.31783869,629.25,628.07,0.31843584]
[1739304247362,1.33541051,628.9,628.08,0.27066295]
[1739304247559,1.33541051,628.89,628.09,0.27066295]
[1739304247759,1.33541051,628.88,628.08,0.27066295]
[1739304247959,1.33541051,628.87,628.09,0.27066295]
[1739304248159,1.33541051,628.86,628.08,0.27066295]
[1739304248360,1.33541051,628.85,628.09,0.27066295]
[1739304248559,1.33541051,628.84,628.08,0.27066295]
[1739304248755,1.33541051,628.83,628.1,0.27066295]
[1739304248958,1.33541051,628.82,628.11,0.27066295]
[1739304249153,1.33541051,628.81,628.08,0.27066295]
[1739304249363,1.33541051,628.8,628.08,0.27066295]
[1739304249558,1.33541051,628.79,628.08,0.27066295]
[1739304249759,1.33541051,628.78,628.08,0.27066295]
[1739304249956,1.33541051,628.77,628.08,0.27066295]
[1739304250156,1.33541051,628.76,628.08,0.27066295]
[1739304250363,1.33541051,628.75,627.88,0.27066295]
[1739304250663,1.33541051,628.74,627.89,0.27066295]
[1739304250961,1.33541051,628.73,627.9,0.27066295]
[1739304251161,1.33541051,628.72,627.88,0.27066295]
[1739304251362,1.33541051,628.71,627.89,0.27066295]
[1739304251665,1.33541051,628.7,627.9,0.27066295]
[1739304251961,1.33541051,628.69,627.91,0.27066295]
[1739304252157,1.33541051,628.68,627.88,0.27066295]
[1739304252355,1.33541051,628.67,627.89,0.27066295]
[1739304252558,1.33541051,628.66,627.87,1.18445702]
[1739304252762,1.33541051,628.65,627.88,1.45519183]
[1739304252962,1.33541051,628.64,627.89,0.27073481]
[1739304253263,1.33541051,628.63,627.89,0.27073481]
[1739304253462,1.33541051,628.62,627.89,0.27073481]
[1739304253663,1.33541051,628.61,627.89,0.27073481]
[1739304253863,1.66147456,628.88,627.89,0.27073481]
[1739304253864,1.33541051,628.6,627.89,0.27073481]
[1739304254059,1.33541051,628.59,627.89,0.27073481]
[1739304254257,1.33541051,628.58,627.89,0.27073481]
[1739304254464,1.33541051,628.57,627.89,0.27073481]
[1739304254663,1.33541051,628.56,627.89,0.27073481]
[1739304254858,1.33541051,628.55,627.89,0.27073481]
[1739304255061,1.33541051,628.54,627.89,0.27073481]
[1739304255263,1.33541051,628.53,627.89,0.27073481]
[1739304255464,1.33541051,628.52,627.89,0.27073481]
[1739304255665,1.33541051,628.51,627.81,0.27073481]
[1739304255965,1.33478473,628.5,627.82,0.27073481]
[1739304256165,1.33478473,628.49,627.83,0.27080455]
[1739304256366,1.33478473,628.48,627.81,0.27080455]
[1739304256666,1.33478473,628.47,627.81,0.27080455]
[1739304256866,1.33478473,628.46,627.81,0.27080455]
[1739304257063,1.33478473,628.45,627.81,0.27080455]
[1739304257258,1.33478473,628.44,627.81,0.27080455]
[1739304257464,1.33478473,628.43,627.81,0.27080455]
[1739304257663,1.33478473,628.42,627.81,0.27080455]
[1739304257865,1.33478473,628.41,627.81,0.27080455]
[1739304258068,1.33478473,628.4,627.81,0.27080455]
[1739304258261,1.33478473,628.39,627.8,1.18445702]
[1739304258465,1.33478473,628.38,627.8,1.18445702]
[1739304258762,1.33478473,628.37,627.65,1.18445702]
[1739304258965,0.31803075,628.87,627.66,0.27085812]
[1739304258966,1.33478473,628.36,627.66,0.27085812]
[1739304259268,1.33478473,628.35,627.66,0.27085812]
[1739304259569,1.33478473,628.34,627.66,0.27085812]
[1739304259969,1.33478473,628.33,627.67,0.27088593]
[1739304260265,1.33759258,628.32,627.66,0.27088593]
[1739304260568,1.33759258,628.32,627.65,1.18445702]
[1739304260569,1.33759258,628.31,627.67,0.27088593]
[1739304260772,1.33759258,628.3,627.66,0.27088593]
[1739304260968,1.33759258,628.29,627.67,0.27088593]
[1739304261165,1.33759258,628.28,627.65,1.18445702]
[1739304261370,0.31803075,628.87,627.66,0.27087124]
[1739304261371,1.33759258,628.27,627.66,0.27087124]
[1739304261571,1.33759258,628.26,627.29,0.27087124]
[1739304261770,1.33759258,628.25,627.3,0.58969795]
[1739304261969,1.33871257,628.24,627.31,0.27087124]
[1739304262170,1.33871257,628.23,627.31,0.58969287]
[1739304262366,1.33871257,628.22,627.32,0.58968779]
[1739304262569,1.33871257,628.21,627.33,0.58968271]
[1739304262771,1.33871257,628.2,627.34,0.58967762]
[1739304262970,1.33871257,628.19,627.35,0.27087124]
[1739304263170,1.33871257,628.18,627.35,0.58967254]
[1739304263369,1.33871257,628.17,627.36,0.31879622]
[1739304263673,0.31803075,628.87,627.36,0.31879622]
[1739304263674,1.33871257,628.16,627.37,0.27086926]
[1739304263869,1.33871257,628.15,627.38,0.31878606]
[1739304264074,1.33871257,628.14,627.39,0.27086926]
[1739304264275,1.33871257,628.13,627.4,0.3187759]
[1739304264475,1.33871257,628.12,627.41,0.27086926]
[1739304264670,0.31803075,628.87,627.41,0.27086926]
[1739304264671,1.33871257,628.11,627.41,0.27086926]
[1739304264874,1.33871257,628.1,627.42,0.31876573]
[1739304265176,1.33871257,628.09,627.43,0.27086926]
[1739304265376,1.33871257,628.08,627.44,0.31875557]
[1739304265572,1.33871257,628.07,627.45,0.27086926]
[1739304265779,1.33871257,628.06,627.45,0.27086926]
[1739304265973,1.33871257,628.05,627.45,0.27086926]
[1739304266173,0.31803075,628.87,627.44,0.31875557]
[1739304266174,1.33871257,628.04,627.46,0.27086926]
[1739304266479,1.33871257,628.03,627.47,0.27086926]
[1739304266675,1.33871257,628.02,627.45,0.27086926]
[1739304266874,1.33871257,628.01,627.46,0.27086926]
[1739304267075,1.33871257,628.0,627.45,0.27086926]
[1739304267271,1.33871257,627.99,627.47,0.27086926]
[1739304267478,1.33871257,627.98,627.48,0.27086926]
[1739304267672,1.33871257,627.97,627.48,0.27086926]
[1739304267876,1.33871257,627.96,627.49,0.27086926]
[1739304268078,1.33871257,627.95,627.45,0.27086926]
[1739304268276,1.33871257,627.94,627.46,0.27086926]
[1739304268479,1.33871257,627.93,627.45,0.27086926]
[1739304268682,1.33871257,627.92,627.46,0.27086926]
[1739304268874,1.33871257,627.91,627.47,0.27086926]
[1739304269079,1.33871257,627.9,627.45,0.27086926]
[1739304269276,1.33871257,627.89,627.46,0.27086926]
[1739304269474,1.33871257,627.88,627.45,0.27086926]
[1739304269673,1.33871257,627.87,627.46,0.27086926]
[1739304269879,1.33871257,627.87,627.44,0.31875557]
[1739304269880,1.33871257,627.86,627.47,0.27086926]
[1739304270078,1.34219233,627.85,627.48,0.27086926]
[1739304270276,1.34219233,627.84,627.45,0.27086926]
[1739304270575,1.34219233,627.83,627.46,0.27086926]
[1739304270778,1.34219233,627.82,627.44,0.31875557]
[1739304270976,1.34219233,627.81,627.45,0.27101152]
[1739304271280,1.34219233,627.8,627.45,0.27101152]
[1739304271481,1.34219233,627.79,627.45,0.27101152]
[1739304271683,1.34219233,627.78,627.45,0.27101152]
[1739304271883,1.34219233,627.77,627.44,0.31875557]
[1739304272082,1.34219233,627.76,627.45,0.27097023]
[1739304272281,1.34219233,627.75,627.45,0.27097023]
[1739304272483,1.34219233,627.74,627.45,0.27097023]
[1739304272782,1.34219233,627.73,627.44,0.31875557]
[1739304273083,0.31803075,628.87,627.45,0.27095745]
[1739304273275,1.34161802,628.86,627.45,0.27095745]
[1739304273480,0.31804592,628.84,627.45,0.27095745]
[1739304273685,1.34161802,628.83,627.45,0.27095745]
[1739304273886,0.31806109,628.81,627.45,0.27095745]
[1739304274080,1.34161802,628.8,627.45,0.27095745]
[1739304274285,1.34161802,628.79,627.45,0.27095745]
[1739304274586,1.34161802,628.78,627.45,0.27095745]
[1739304274887,1.65969935,628.77,627.45,0.27095745]
[1739304275086,1.65970441,628.76,627.45,0.27095745]
[1739304275288,1.34161802,628.75,627.45,0.27095745]
[1739304275488,1.65971453,628.74,627.45,0.27095745]
[1739304275685,1.34161802,628.73,627.46,0.31874541]
[1739304275882,1.34161802,628.72,627.47,0.27095745]
[1739304276082,0.31809651,628.74,627.47,0.27095745]
[1739304276083,1.34114247,628.71,627.48,0.31873525]
[1739304276287,1.65925921,628.7,627.49,0.27095745]
[1739304276586,1.34114247,628.69,627.5,0.27090146]
[1739304276783,1.65926933,628.68,627.51,0.27090146]
[1739304276982,1.65927439,628.67,627.52,0.27090146]
[1739304277183,1.65927945,628.66,627.53,0.27090146]
[1739304277383,1.65928452,628.65,627.54,0.27090146]
[1739304277587,1.65928958,628.64,627.55,0.27090146]
[1739304277788,1.34114247,628.63,627.56,0.27090146]
[1739304277987,1.34114247,628.62,627.57,0.27090146]
[1739304278187,1.34114247,628.61,627.48,0.31873525]
[1739304278384,0.31814711,628.64,627.48,0.31873525]
[1739304278385,1.34114247,628.6,627.49,0.27089135]
[1739304278687,1.34114247,628.59,627.49,0.27089135]
[1739304278888,1.34114247,628.58,627.49,0.27089135]
[1739304279089,1.34114247,628.57,627.49,0.27089135]
[1739304279388,1.34114247,628.56,627.49,0.27089135]
[1739304279687,1.34114247,628.55,627.49,0.27089135]
[1739304279883,1.34114247,628.54,627.49,0.27089135]
[1739304280088,1.34114247,628.53,627.49,0.27089135]
[1739304280287,1.33959973,628.52,627.49,0.27089135]
[1739304280487,1.33959973,628.51,627.49,0.27089135]
[1739304280688,1.33959973,628.5,627.49,0.27089135]
[1739304280887,1.33959973,628.49,627.49,0.27089135]
[1739304281087,1.33959973,628.48,627.49,0.27089135]
[1739304281389,1.33959973,628.47,627.49,0.27089135]
[1739304281684,1.33959973,628.46,627.5,0.27089135]
[1739304281887,1.33959973,628.45,627.51,0.27089135]
[1739304282087,1.33959973,628.44,627.49,0.27089135]
[1739304282289,1.33959973,628.43,627.5,0.27089135]
[1739304282487,1.33959973,628.42,627.49,0.27089135]
[1739304282684,1.33959973,628.41,627.5,0.27089135]
[1739304282885,1.33959973,628.4,627.49,0.27089135]
[1739304283082,1.33959973,628.39,627.5,0.27089135]
[1739304283283,1.33959973,628.38,627.51,0.27089135]
[1739304283487,1.33959973,628.37,627.52,0.27089135]
[1739304283791,1.33959973,628.36,627.53,0.27089135]
[1739304283988,1.33959973,628.35,627.49,0.27089135]
[1739304284188,1.33959973,628.34,627.5,0.27089135]
[1739304284385,0.31814711,628.64,627.48,0.31873525]
[1739304284386,0.31814711,628.64,627.51,0.27089135]
[1739304284590,1.34007157,628.63,627.49,0.27089135]
[1739304284789,1.34007157,628.62,627.5,0.27089135]
[1739304284991,1.34008861,628.61,627.51,0.27089135]
[1739304285191,1.34008861,628.6,627.52,0.27089135]
[1739304285395,1.34008861,628.59,627.53,0.27089135]
[1739304285593,1.34008861,628.58,627.48,0.31873525]
[1739304285789,1.34008861,628.57,627.49,0.27087494]
[1739304285990,1.34008861,628.56,627.5,0.27087494]
[1739304286292,1.34008861,628.55,627.51,0.27087494]
[1739304286594,1.34008861,628.54,627.52,0.27087494]
[1739304286893,1.34008861,628.53,627.53,0.27087494]
[1739304287095,1.34008861,628.52,627.49,0.27087494]
[1739304287296,1.34008861,628.51,627.49,0.27087494]
[1739304287494,1.34008861,628.5,627.48,0.31873525]
[1739304287696,1.34008861,628.49,627.49,0.27089877]
[1739304287899,1.34008861,628.48,627.5,0.27089877]
[1739304288092,1.34008861,628.47,627.51,0.27089877]
[1739304288298,1.34008861,628.46,627.52,0.27089877]
[1739304288495,1.34008861,628.45,627.53,0.27089877]
[1739304288690,0.31814711,628.64,627.54,0.27089877]
[1739304288691,1.34008861,628.44,627.54,0.27089877]
[1739304288890,1.34008861,628.43,627.55,0.27089877]
[1739304289093,0.31814711,628.64,627.56,0.27089877]
[1739304289094,1.34008861,628.42,627.56,0.27089877]
[1739304289295,1.34008861,628.41,627.49,0.27089877]
[1739304289491,1.34008861,628.4,627.5,0.27089877]
[1739304289695,1.34008861,628.39,627.51,0.27089877]
[1739304289893,1.34008861,628.38,627.52,0.27089877]
[1739304290095,1.34008861,628.37,627.53,0.27089877]
[1739304290295,1.34008861,628.36,627.54,0.27089877]
[1739304290495,1.34008861,628.35,627.55,0.27089877]
[1739304290791,1.34008861,628.34,627.56,0.27089877]
[1739304290989,1.34008861,628.33,627.57,0.27089877]
[1739304291195,1.34008861,628.32,627.58,0.27087438]
[1739304291396,1.34008861,628.31,627.59,0.27087438]
[1739304291694,1.34008861,628.3,627.6,0.27087438]
[1739304291898,1.34008861,628.29,627.49,0.27087438]
[1739304292197,1.34008861,628.28,627.5,0.58959947]
[1739304292397,1.34008861,628.27,627.51,0.5895944]
[1739304292597,1.34008861,628.26,627.52,0.27087438]
[1739304292799,1.34015588,628.25,627.53,0.31870986]
[1739304292998,1.34015588,628.24,627.56,1.18445702]
[1739304293194,1.34053223,628.23,627.57,0.58950152]
[1739304293394,1.34053223,628.22,627.58,0.58949645]
[1739304293599,1.34053223,628.21,627.59,0.31867939]
[1739304293792,1.34053223,628.2,627.6,0.27079919]
[1739304293993,1.34053223,628.19,627.61,0.31866923]
[1739304294195,1.34053223,628.18,627.62,0.27079919]
[1739304294393,1.34053223,628.17,627.63,0.58945827]
[1739304294600,1.34053223,628.16,627.64,0.58945319]
[1739304294900,1.34053223,628.15,627.65,0.58944811]
[1739304295199,1.34053223,628.14,627.66,0.58944304]
[1739304295393,1.34053223,628.13,627.67,0.58943796]
[1739304295596,1.34053223,628.12,627.68,0.58943288]
[1739304295797,4.02117475,629.12,627.69,0.58942781]
[1739304295997,5.68143496,629.11,627.7,0.58942273]
[1739304296195,5.68144002,629.1,627.71,0.58941766]
[1739304296393,5.68144507,629.09,627.72,0.58941258]
[1739304296597,5.68144507,629.09,627.64,1.18445702]
[1739304296598,1.34235079,629.08,627.73,0.5894075]
[1739304296896,1.66028043,629.07,627.74,0.27079919]
[1739304297095,1.66028548,629.06,627.74,0.27079919]
[1739304297295,1.66029054,629.05,627.74,0.27079919]
[1739304297601,1.66029559,629.04,627.74,0.27079919]
[1739304297798,0.31795491,629.02,627.74,0.27079919]
[1739304297998,1.34235079,629.01,627.74,0.27079919]
[1739304298198,2.16829968,629.54,627.74,0.27079919]
[1739304298199,0.31797007,628.99,627.74,0.27079919]
[1739304298398,1.34235079,628.98,627.74,0.27079919]
[1739304298593,1.66033097,628.97,627.74,0.27079919]
[1739304298794,1.66033603,628.96,627.74,0.27079919]
[1739304299000,1.66034109,628.95,627.74,0.27079919]
[1739304299196,1.66034614,628.94,627.74,0.27079919]
[1739304299401,1.34235079,628.93,627.74,0.27079919]
[1739304299594,1.34235079,628.92,627.74,0.27079919]
[1739304299799,1.66036131,628.91,627.74,0.27079919]
[1739304300098,1.66036637,628.9,627.74,0.27079919]
[1739304300294,1.34235079,628.89,627.73,0.31860831]
[1739304300497,1.66037648,628.88,627.74,0.27081868]
[1739304300700,1.34235079,628.87,627.74,0.27081868]
[1739304300899,1.34235079,628.86,627.74,0.27081868]
[1739304301098,1.34235079,628.85,627.74,0.27081868]
[1739304301303,1.34235079,628.84,627.74,0.27081868]
[1739304301504,1.34235079,628.83,627.74,0.27081868]
[1739304301700,1.34235079,628.82,627.74,0.27081868]
[1739304302002,1.34235079,628.81,627.74,0.27081868]
[1739304302202,1.34235079,628.8,627.74,0.27081868]
[1739304302394,0.31802569,628.88,627.74,0.27081868]
[1739304302598,1.34592517,628.87,627.74,0.27081868]
[1739304302798,1.34592517,628.86,627.74,0.27081868]
[1739304303104,1.34592517,628.85,627.74,0.27081868]
[1739304303297,1.34592517,628.84,627.74,0.27081868]
[1739304303502,1.34592517,628.83,627.73,0.31860831]
[1739304303703,1.34592517,628.82,627.73,0.31860831]
[1739304303896,1.34592517,628.81,627.73,0.31860831]
[1739304304103,1.66399132,628.8,627.74,0.27087389]
[1739304304407,1.66399638,628.79,627.74,0.27087389]
[1739304304703,1.66400144,628.78,627.74,0.27087389]
[1739304304904,1.34592517,628.77,627.74,0.27087389]
[1739304305099,1.34592517,628.76,627.74,0.27087389]
[1739304305404,1.66401662,628.75,627.6,1.18445702]
[1739304305599,1.34592517,628.74,627.61,0.27091084]
[1739304305800,7.55907941,628.73,627.61,0.27091084]
[1739304305997,7.85159869,628.72,627.61,0.27091084]
[1739304306202,7.85159869,628.71,627.61,0.27091084]
[1739304306400,7.85159869,628.7,627.61,0.27091084]
[1739304306600,0.31812686,628.68,627.61,0.27091084]
[1739304306806,7.85159869,628.67,627.61,0.27091084]
[1739304307008,8.16973567,628.66,627.61,0.27091084]
[1739304307208,7.85159869,628.65,627.61,0.27091084]
[1739304307408,8.1697458,628.64,627.61,0.27091084]
[1739304307608,7.87723158,628.63,627.61,0.27091084]
[1739304307807,7.87723664,628.62,627.61,0.27091084]
[1739304308009,7.8772417,628.61,627.61,0.27091084]
[1739304308303,7.55907941,628.6,627.61,0.27091084]
[1739304308507,0.31816229,628.61,627.23,1.18445702]
[1739304308508,6.21315424,628.59,627.24,0.27091084]
[1739304308711,7.56120697,628.58,627.25,0.27091084]
[1739304309009,1.34805273,628.57,627.24,0.27091084]
[1739304309208,1.34805273,628.56,627.25,0.27091084]
[1739304309405,1.34805273,628.55,627.24,0.27091084]
[1739304309608,1.34805273,628.54,627.24,0.27091084]
[1739304309802,1.66625552,628.53,627.24,0.27091084]
[1739304310012,1.66626058,628.52,627.24,0.27091084]
[1739304310208,1.66626564,628.51,627.24,0.27091084]
[1739304310509,1.6662707,628.5,627.24,0.27091084]
[1739304310808,1.66627577,628.49,627.24,0.27091084]
[1739304311010,1.66628083,628.48,627.24,0.27091084]
[1739304311310,1.66628589,628.47,627.24,0.27091084]
[1739304311610,1.66629096,628.46,627.25,0.27091084]
[1739304311809,1.66629096,628.46,627.06,1.18445702]
[1739304311810,1.66629602,628.45,627.26,0.27091084]
[1739304312003,1.66630109,628.44,627.27,0.27091084]
[1739304312205,1.34805273,628.43,627.28,0.27091084]
[1739304312408,1.34805273,628.42,627.07,0.27091084]
[1739304312604,1.34805273,628.41,627.08,0.31893857]
[1739304312809,1.34696524,628.4,627.09,0.27103144]
[1739304313013,1.34696524,628.39,627.1,0.3189284]
[1739304313206,1.34696524,628.38,627.11,0.27103144]
[1739304313411,1.34696524,628.37,627.11,0.27103144]
[1739304313606,1.34696524,628.36,627.11,0.27103144]
[1739304313810,0.31824836,628.44,627.11,0.27103144]
[1739304313811,1.34696524,628.35,627.11,0.27103144]
[1739304314010,1.34696524,628.34,627.11,0.27103144]
[1739304314213,1.34696524,628.33,627.12,0.31891822]
[1739304314512,1.34696524,628.32,627.13,0.27103144]
[1739304314714,1.34696524,628.31,627.14,0.31890805]
[1739304314916,1.3453551,628.3,627.15,0.27103144]
[1739304315114,1.3453551,628.29,627.15,0.27103144]
[1739304315414,1.3453551,628.28,627.15,0.27103144]
[1739304315713,1.3453551,628.27,627.15,0.27103144]
[1739304315909,1.3453551,628.26,627.15,0.27103144]
[1739304316108,1.3453551,628.25,627.16,0.31889788]
[1739304316314,1.3453551,628.24,627.17,0.27101272]
[1739304316514,1.3453551,628.23,627.17,0.27101272]
[1739304316715,1.3453551,628.22,627.17,0.27101272]
[1739304316914,1.34532702,628.21,627.17,0.27101272]
[1739304317214,1.34532702,628.2,627.17,0.27101272]
[1739304317416,1.34532702,628.19,627.17,0.27101272]
[1739304317614,1.34532702,628.18,627.17,0.27101272]
[1739304317809,1.34532702,628.17,627.17,0.27101272]
[1739304318014,1.34532702,628.16,627.17,0.27101272]
[1739304318315,1.34532702,628.15,627.18,0.27104383]
[1739304318615,1.34532702,628.14,627.19,0.27104383]
[1739304318914,1.34421086,628.13,627.2,0.27104383]
[1739304319115,1.34421086,628.12,627.21,0.27104383]
[1739304319311,1.34421086,628.11,627.17,0.27104383]
[1739304319511,1.34421086,628.1,627.22,0.27104383]
[1739304319712,1.34421086,628.09,627.23,0.27104383]
[1739304319910,1.34421086,628.08,627.17,0.27104383]
[1739304320211,1.34421086,628.07,627.17,0.27104383]
[1739304320412,1.34421086,628.06,627.17,0.27104383]
[1739304320608,1.34421086,628.05,627.17,0.27104383]
[1739304320813,1.34421086,628.04,627.17,0.27104383]
[1739304321015,1.34400602,628.03,627.17,0.27104383]
[1739304321213,1.34400602,628.02,627.17,0.27104383]
[1739304321409,1.34400602,628.01,627.17,0.27104383]
[1739304321611,1.34400602,628.0,627.17,0.27104383]
[1739304321812,1.34400602,627.99,627.18,0.27106216]
[1739304322112,1.34400602,627.98,627.19,0.27106216]
[1739304322318,1.34400602,627.97,627.2,0.27106216]
[1739304322515,1.34400602,627.96,627.17,0.27106216]
[1739304322716,1.34400602,627.95,627.18,0.27106216]
[1739304322912,1.34400602,627.94,627.19,0.27106216]
[1739304323216,1.34400602,627.93,627.2,0.27106216]
[1739304323416,1.34400602,627.92,627.16,0.31889788]
[1739304323617,0.31824836,628.44,626.81,1.66341366]
[1739304323618,1.34400602,627.91,627.21,0.31887246]
[1739304323812,1.34400602,627.9,627.21,0.31887246]
[1739304324015,1.34400602,627.89,627.22,0.27096069]
[1739304324211,1.34400602,627.88,627.23,0.27096069]
[1739304324412,1.34400602,627.87,627.24,0.27096069]
[1739304324616,1.34400602,627.87,627.21,0.31887246]
[1739304324617,1.34400602,627.86,627.25,0.58981282]
[1739304324821,6.20258367,629.02,627.26,0.58980773]
[1739304325118,0.31796502,629.0,627.28,0.31883688]
[1739304325319,1.34473595,628.99,627.29,0.27096069]
[1739304325512,1.34473595,628.98,627.3,0.27085255]
[1739304325820,1.34473595,628.97,627.31,0.27085255]
[1739304326019,1.34473595,628.96,627.32,0.27085255]
[1739304326218,1.34473595,628.95,627.33,0.27085255]
[1739304326413,1.34473595,628.94,627.34,0.27085255]
[1739304326614,1.66273636,628.93,627.35,0.58965385]
[1739304326813,1.34473595,628.92,627.36,0.58964877]
[1739304327116,1.66258915,628.91,627.37,0.58964369]
[1739304327320,1.34457863,628.9,627.38,0.58963861]
[1739304327520,0.31802569,628.88,627.39,0.58963353]
[1739304327721,1.34457863,628.87,627.4,0.27085255]
[1739304327914,1.34457863,628.86,627.4,0.27085255]
[1739304328119,1.34457863,628.85,627.4,0.27085255]
[1739304328315,1.34457863,628.84,627.4,0.27085255]
[1739304328515,1.66262961,628.83,627.4,0.27085255]
[1739304328715,1.34457863,628.82,627.4,0.27085255]
[1739304328920,0.31806615,628.8,627.4,0.27085255]
[1739304329120,1.34412568,628.79,627.4,0.27085255]
[1739304329319,1.66220195,628.78,627.4,0.27085255]
[1739304329529,1.66220701,628.77,627.4,0.27085255]
[1739304329717,1.66221207,628.76,627.4,0.27085255]
[1739304330018,2.87933383,629.13,627.4,0.27085255]
[1739304330019,1.66221713,628.75,627.4,0.27085255]
[1739304330222,1.66222219,628.74,627.4,0.27085255]
[1739304330423,1.66222724,628.73,627.4,0.27085255]
[1739304330725,1.6622323,628.72,627.4,0.27085255]
[1739304331023,1.34412568,628.71,627.41,0.27093028]
[1739304331223,1.66232169,628.7,627.4,0.27093028]
[1739304331423,1.66232675,628.69,627.4,0.27093028]
[1739304331625,1.34420495,628.68,627.4,0.27093028]
[1739304331824,1.66233687,628.67,627.4,0.27093028]
[1739304332124,1.66234193,628.66,627.41,0.27096398]
[1739304332324,0.31814711,628.64,627.4,0.27096398]
[1739304332526,1.34420495,628.63,627.41,0.27096398]
[1739304332721,1.66236218,628.62,627.42,0.27096398]
[1739304332926,1.66236724,628.61,627.4,0.27096398]
[1739304333125,1.34420495,628.6,627.41,0.27096398]
[1739304333319,1.34420495,628.59,627.4,0.27096398]
[1739304333521,0.31817747,628.58,627.4,0.27096398]
[1739304333722,1.34377851,628.57,627.4,0.27096398]
[1739304333923,1.66196611,628.56,627.4,0.27096398]
[1739304334221,1.66197117,628.55,627.4,0.27096398]
[1739304334423,1.34377851,628.54,627.4,0.27096398]
[1739304334620,1.6619813,628.53,627.4,0.27096398]
[1739304334928,1.66198636,628.52,627.4,0.27096398]
[1739304335119,1.66199142,628.51,627.4,0.27096398]
[1739304335319,1.34377851,628.5,627.4,0.27096398]
[1739304335521,1.34377851,628.49,627.4,0.27096398]
[1739304335726,1.34377851,628.48,627.4,0.27096398]
[1739304335926,1.34377851,628.47,627.4,0.27096398]
[1739304336122,1.34377851,628.46,627.4,0.27096398]
[1739304336327,1.34377851,628.45,627.4,0.27096398]
[1739304336527,1.34377851,628.44,627.39,0.31878098]
[1739304336729,1.34377851,628.43,627.4,0.27090539]
[1739304337027,0.31821291,628.51,627.4,0.27090539]
[1739304337028,1.34377851,628.42,627.4,0.27090539]
[1739304337228,1.34377851,628.41,627.4,0.27090539]
[1739304337528,1.34377851,628.4,627.4,0.27090539]
[1739304337727,1.34377851,628.39,627.4,0.27090539]
[1739304338028,1.34377851,628.38,627.4,0.27090539]
[1739304338226,1.34377851,628.37,627.4,0.27090539]
[1739304338423,1.34377851,628.36,627.4,0.27090539]
[1739304338733,1.34377851,628.35,627.4,0.27090539]
[1739304338922,1.34377851,628.34,627.4,0.27090539]
[1739304339125,1.34377851,628.33,627.4,0.27090539]
[1739304339326,1.34377851,628.32,627.4,0.27090539]
[1739304339523,1.34377851,628.31,627.4,0.27090539]
[1739304339725,0.31821291,628.51,627.4,0.27090539]
[1739304339926,1.34337209,628.5,627.4,0.27090539]
[1739304340126,1.34337209,628.49,627.4,0.27090539]
[1739304340321,1.34337209,628.48,627.4,0.27090539]
[1739304340521,1.34328113,628.47,627.4,0.27090539]
[1739304340721,1.34328113,628.46,627.4,0.27090539]
[1739304340923,1.34328113,628.45,627.4,0.27090539]
[1739304341127,1.34328113,628.44,627.4,0.27090539]
[1739304341428,1.34328113,628.43,627.4,0.27090539]
[1739304341629,1.34328113,628.42,627.4,0.27090539]
[1739304341929,1.34328113,628.41,627.4,0.27090539]
[1739304342129,1.34328113,628.4,627.39,0.31878098]
[1739304342325,0.31821291,628.51,627.39,0.31878098]
[1739304342326,1.34328113,628.39,627.4,0.27090158]
[1739304342530,1.34328113,628.38,627.41,0.31877081]
[1739304342725,0.31821291,628.51,627.42,0.27090158]
[1739304342726,1.34328113,628.37,627.42,0.27090158]
[1739304342926,1.34328113,628.36,627.43,0.31876065]